[Event "GrandPrix_30.05"]
[Site "Chess.com"]
[Date "2020.05.30"]
[Round "8"]
[White "aleksandrovaleksei"]
[Black "Martin_Petrov2000"]
[Result "1-0"]
[WhiteElo "2566"]
[BlackElo "2341"]
[TimeControl "600+2"]
[EndTime "12:00:45 PDT"]
[Termination "aleksandrovaleksei won by resignation"]

1. d4 {[%clk 0:10:01.9]} 1... Nf6 {[%clk 0:10:00.1]} 2. c4 {[%clk 0:10:02.2]}
2... e6 {[%clk 0:10:01.3]} 3. Nc3 {[%clk 0:10:03.3]} 3... Bb4 {[%clk 0:10:01.5]}
4. e3 {[%clk 0:10:04.5]} 4... O-O {[%clk 0:10:01.6]} 5. Bd3 {[%clk 0:10:05.3]}
5... d5 {[%clk 0:10:02.1]} 6. cxd5 {[%clk 0:10:06.3]} 6... exd5 {[%clk
0:09:58.1]} 7. Ne2 {[%clk 0:10:06.6]} 7... a6 {[%clk 0:09:54]} 8. O-O {[%clk
0:10:01.3]} 8... Nbd7 {[%clk 0:09:50.3]} 9. Qb3 {[%clk 0:09:19.1]} 9... Bd6
{[%clk 0:09:23.6]} 10. Nxd5 {[%clk 0:09:18]} 10... Nxd5 {[%clk 0:09:17.7]} 11.
Qxd5 {[%clk 0:09:18.4]} 11... Nf6 {[%clk 0:09:13.5]} 12. Qf3 {[%clk 0:08:59.9]}
12... Bg4 {[%clk 0:08:49.8]} 13. Qxb7 {[%clk 0:08:59.7]} 13... Rb8 {[%clk
0:08:49.3]} 14. Qc6 {[%clk 0:08:42.9]} 14... Bd7 {[%clk 0:08:44.5]} 15. Qc2
{[%clk 0:08:29.8]} 15... Bxh2+ {[%clk 0:08:30]} 16. Kxh2 {[%clk 0:08:30.1]}
16... Ng4+ {[%clk 0:08:30.9]} 17. Kg3 {[%clk 0:08:31.1]} 17... Qg5 {[%clk
0:07:11.9]} 18. f4 {[%clk 0:08:28.2]} 18... Qh5 {[%clk 0:07:06.3]} 19. Bd2
{[%clk 0:07:33.8]} 19... Qh2+ {[%clk 0:07:04]} 20. Kf3 {[%clk 0:07:32.7]} 20...
Qh4 {[%clk 0:06:41.8]} 21. g3 {[%clk 0:04:12.7]} 21... Qh5 {[%clk 0:06:35.5]}
22. Rh1 {[%clk 0:02:58.4]} 22... Ne5+ {[%clk 0:04:26.9]} 23. Kf2 {[%clk
0:02:20.9]} 23... Qf3+ {[%clk 0:04:20.9]} 24. Kg1 {[%clk 0:02:21.6]} 24... Nxd3
{[%clk 0:03:48.5]} 25. Qxd3 {[%clk 0:02:20.5]} 25... f5 {[%clk 0:03:48.2]} 26.
Rf1 {[%clk 0:02:15.9]} 26... Qg4 {[%clk 0:03:46.8]} 27. Rh4 {[%clk 0:01:43.3]}
27... Qg6 {[%clk 0:03:47.1]} 28. Kf2 {[%clk 0:01:29]} 28... Rxb2 {[%clk
0:03:23.1]} 29. Nc3 {[%clk 0:01:28.9]} 29... Rfb8 {[%clk 0:03:06]} 30. Rc1
{[%clk 0:01:29.1]} 30... h6 {[%clk 0:02:48.9]} 31. Rc2 {[%clk 0:01:27.6]} 31...
R2b6 {[%clk 0:02:41.9]} 32. Nd5 {[%clk 0:01:25.5]} 32... Re6 {[%clk 0:02:42.4]}
33. Rxc7 {[%clk 0:01:19.4]} 33... Bb5 {[%clk 0:02:42.8]} 34. Qc2 {[%clk
0:01:17.8]} 34... Kh7 {[%clk 0:02:39.2]} 35. Ne7 {[%clk 0:01:13.9]} 35... Rxe7
{[%clk 0:02:33.5]} 36. Rxe7 {[%clk 0:01:14.3]} 36... Bc6 {[%clk 0:02:35]} 37. d5
{[%clk 0:01:10.6]} 37... Qf6 {[%clk 0:02:16.4]} 38. Re5 {[%clk 0:01:10]} 38...
Bd7 {[%clk 0:02:12.4]} 39. Rh1 {[%clk 0:01:06.8]} 39... Rc8 {[%clk 0:02:09.9]}
40. Qd3 {[%clk 0:01:05.9]} 40... Qg6 {[%clk 0:02:04.2]} 41. e4 {[%clk
0:00:59.5]} 41... Bb5 {[%clk 0:02:03.2]} 42. Qe3 {[%clk 0:00:59.5]} 42... Rc2
{[%clk 0:01:55.2]} 43. exf5 {[%clk 0:00:59.8]} 43... Qf6 {[%clk 0:01:55]} 44.
Rc1 {[%clk 0:00:57.9]} 44... Rxa2 {[%clk 0:01:53.7]} 45. Qd4 {[%clk 0:00:48.7]}
45... Qf7 {[%clk 0:01:51]} 46. Rh1 {[%clk 0:00:44.6]} 46... Qf6 {[%clk
0:01:39.6]} 47. g4 {[%clk 0:00:42.8]} 47... Qf8 {[%clk 0:01:28.5]} 48. g5 {[%clk
0:00:40.2]} 48... Qa3 {[%clk 0:01:14.1]} 49. g6+ {[%clk 0:00:33.5]} 49... Kg8
{[%clk 0:01:12.9]} 50. f6 {[%clk 0:00:32.3]} 50... gxf6 {[%clk 0:01:06.4]} 51.
Re3 {[%clk 0:00:30.4]} 51... Qa5 {[%clk 0:01:02.7]} 52. Rd1 {[%clk 0:00:20.7]}
52... Ba4 {[%clk 0:00:20.9]} 53. Ra3 {[%clk 0:00:15.9]} 53... Qb5 {[%clk
0:00:07.9]} 54. Rxa2 {[%clk 0:00:14.8]} 54... Bxd1 {[%clk 0:00:08.9]} 55. Bc3
{[%clk 0:00:14.9]} 55... Bb3 {[%clk 0:00:04.2]} 56. Rb2 {[%clk 0:00:15.6]} 56...
Qd7 {[%clk 0:00:03.4]} 57. Qxf6 {[%clk 0:00:15.7]} 1-0

[Event "GrandPrix_30.05"]
[Site "Chess.com"]
[Date "2020.05.30"]
[Round "8"]
[White "Meri-Arabidze"]
[Black "SantoBlue"]
[Result "1-0"]
[WhiteElo "2344"]
[BlackElo "2503"]
[TimeControl "600+2"]
[EndTime "12:00:50 PDT"]
[Termination "Meri-Arabidze won by resignation"]

1. d4 {[%clk 0:10:01.9]} 1... Nf6 {[%clk 0:09:59.6]} 2. c4 {[%clk 0:10:02.4]}
2... e6 {[%clk 0:10:00.3]} 3. Nf3 {[%clk 0:10:02.8]} 3... b6 {[%clk 0:10:01.1]}
4. g3 {[%clk 0:10:03.3]} 4... Bb7 {[%clk 0:10:01.7]} 5. Bg2 {[%clk 0:10:04.3]}
5... Be7 {[%clk 0:10:02.4]} 6. O-O {[%clk 0:10:05.2]} 6... O-O {[%clk
0:10:03.1]} 7. Re1 {[%clk 0:10:06.5]} 7... Na6 {[%clk 0:10:03.9]} 8. Ne5 {[%clk
0:09:59.4]} 8... Bxg2 {[%clk 0:09:54.3]} 9. Kxg2 {[%clk 0:10:01.3]} 9... Qc8
{[%clk 0:09:43.8]} 10. Nc3 {[%clk 0:09:50.6]} 10... Bb4 {[%clk 0:09:23.5]} 11.
e4 {[%clk 0:09:38.4]} 11... c5 {[%clk 0:09:08.5]} 12. d5 {[%clk 0:09:34.2]}
12... Bxc3 {[%clk 0:08:30.5]} 13. bxc3 {[%clk 0:09:34.1]} 13... Qc7 {[%clk
0:08:03.3]} 14. Ng4 {[%clk 0:08:49.3]} 14... Nxg4 {[%clk 0:07:50]} 15. Qxg4
{[%clk 0:08:51.2]} 15... Qe5 {[%clk 0:07:41.6]} 16. Bd2 {[%clk 0:08:37.5]} 16...
Rae8 {[%clk 0:05:42.7]} 17. f4 {[%clk 0:08:25.3]} 17... f5 {[%clk 0:05:27.8]}
18. Qh5 {[%clk 0:06:55.4]} 18... Qb8 {[%clk 0:05:14.9]} 19. e5 {[%clk
0:06:48.3]} 19... Nc7 {[%clk 0:04:09.1]} 20. Qf3 {[%clk 0:06:21.8]} 20... Qa8
{[%clk 0:04:03.7]} 21. d6 {[%clk 0:06:19.3]} 21... Na6 {[%clk 0:04:02.6]} 22. a4
{[%clk 0:06:15.3]} 22... Qxf3+ {[%clk 0:03:57.3]} 23. Kxf3 {[%clk 0:06:16.4]}
23... Nb8 {[%clk 0:03:59]} 24. a5 {[%clk 0:06:15.2]} 24... Nc6 {[%clk
0:03:59.5]} 25. axb6 {[%clk 0:06:03.3]} 25... axb6 {[%clk 0:04:01.4]} 26. Ke3
{[%clk 0:05:11.1]} 26... Ra8 {[%clk 0:03:28.4]} 27. Kd3 {[%clk 0:05:05.4]} 27...
Rxa1 {[%clk 0:03:20.9]} 28. Rxa1 {[%clk 0:05:05]} 28... Kf7 {[%clk 0:03:11.9]}
29. Rb1 {[%clk 0:04:19]} 29... Rb8 {[%clk 0:03:10.9]} 30. Be3 {[%clk 0:04:14.5]}
30... g5 {[%clk 0:02:54.9]} 31. Rb2 {[%clk 0:04:00]} 31... Kg6 {[%clk
0:02:49.7]} 32. h4 {[%clk 0:03:29.9]} 32... gxf4 {[%clk 0:02:22.6]} 33. gxf4
{[%clk 0:03:30.9]} 33... Kf7 {[%clk 0:02:24]} 34. Rb1 {[%clk 0:03:23.6]} 34...
Kg7 {[%clk 0:02:17.8]} 35. Rb2 {[%clk 0:03:18.8]} 35... Kh6 {[%clk 0:02:15.1]}
36. Rb1 {[%clk 0:03:17.3]} 36... Kh5 {[%clk 0:01:56.5]} 37. Rg1 {[%clk
0:03:12.9]} 37... h6 {[%clk 0:01:56.8]} 38. Rg7 {[%clk 0:02:52.2]} 38... Rb7
{[%clk 0:01:57]} 39. Bf2 {[%clk 0:02:39.4]} 39... Ra7 {[%clk 0:01:51.1]} 40. Be1
{[%clk 0:02:19.6]} 40... Ra1 {[%clk 0:01:24.9]} 41. Bd2 {[%clk 0:02:10]} 41...
Ra7 {[%clk 0:01:14.6]} 42. Be1 {[%clk 0:02:10.8]} 42... Rb7 {[%clk 0:01:00.6]}
43. Bf2 {[%clk 0:02:09.4]} 43... Na5 {[%clk 0:00:58.8]} 44. Be1 {[%clk
0:01:59.8]} 44... b5 {[%clk 0:00:18.9]} 45. cxb5 {[%clk 0:01:58]} 45... c4+
{[%clk 0:00:19.8]} 46. Kd4 {[%clk 0:01:30.3]} 46... Rxb5 {[%clk 0:00:20.8]} 47.
Rxd7 {[%clk 0:01:28.9]} 47... Rd5+ {[%clk 0:00:21.7]} 48. Ke3 {[%clk 0:01:29.7]}
48... Rd3+ {[%clk 0:00:22.7]} 49. Ke2 {[%clk 0:01:27.6]} 49... Nb3 {[%clk
0:00:23.8]} 50. Rg7 {[%clk 0:00:56.5]} 50... Nc5 {[%clk 0:00:21.8]} 51. Bf2
{[%clk 0:00:51.4]} 51... Ne4 {[%clk 0:00:22.8]} 52. Bd4 {[%clk 0:00:49.3]} 52...
Nxc3+ {[%clk 0:00:09.5]} 53. Bxc3 {[%clk 0:00:50.4]} 53... Rxc3 {[%clk
0:00:11.4]} 54. Re7 {[%clk 0:00:41.9]} 54... Kg4 {[%clk 0:00:10.9]} 55. Rxe6
{[%clk 0:00:39.8]} 55... Kxf4 {[%clk 0:00:12.4]} 56. d7 {[%clk 0:00:38.5]} 56...
Re3+ {[%clk 0:00:12.2]} 57. Kf2 {[%clk 0:00:35.3]} 57... Rf3+ {[%clk 0:00:09.6]}
58. Kg2 {[%clk 0:00:33.1]} 58... Rg3+ {[%clk 0:00:10.7]} 59. Kh2 {[%clk
0:00:33.4]} 59... Kf3 {[%clk 0:00:04.2]} 60. d8=Q {[%clk 0:00:30.4]} 60... Rg2+
{[%clk 0:00:05.3]} 61. Kh1 {[%clk 0:00:31.7]} 61... Kf2 {[%clk 0:00:04.6]} 62.
Qd2+ {[%clk 0:00:31.2]} 1-0

[Event "GrandPrix_30.05"]
[Site "Chess.com"]
[Date "2020.05.30"]
[Round "8"]
[White "tsvet2005"]
[Black "Glek_Igor"]
[Result "1-0"]
[WhiteElo "2302"]
[BlackElo "2425"]
[TimeControl "600+2"]
[EndTime "12:00:52 PDT"]
[Termination "tsvet2005 won on time"]

1. d4 {[%clk 0:10:01.9]} 1... e6 {[%clk 0:09:58.8]} 2. c4 {[%clk 0:10:03.2]}
2... Bb4+ {[%clk 0:09:59.1]} 3. Bd2 {[%clk 0:10:03.2]} 3... Bxd2+ {[%clk
0:09:59.6]} 4. Qxd2 {[%clk 0:10:05.1]} 4... f5 {[%clk 0:10:00.9]} 5. Nc3 {[%clk
0:10:04.2]} 5... Nf6 {[%clk 0:10:02.1]} 6. g3 {[%clk 0:10:04.8]} 6... d6 {[%clk
0:10:02.9]} 7. Bg2 {[%clk 0:10:06.2]} 7... Qe7 {[%clk 0:10:03.9]} 8. Nf3 {[%clk
0:10:06.8]} 8... e5 {[%clk 0:10:03]} 9. dxe5 {[%clk 0:09:52.6]} 9... dxe5 {[%clk
0:10:03.4]} 10. e4 {[%clk 0:09:54.1]} 10... fxe4 {[%clk 0:10:03.3]} 11. Ng5
{[%clk 0:09:53.4]} 11... Nc6 {[%clk 0:09:58.6]} 12. Ngxe4 {[%clk 0:09:50.3]}
12... O-O {[%clk 0:09:51.1]} 13. Nxf6+ {[%clk 0:09:35]} 13... Qxf6 {[%clk
0:09:30]} 14. O-O {[%clk 0:09:30.2]} 14... Be6 {[%clk 0:09:26.6]} 15. Nd5 {[%clk
0:09:23.3]} 15... Bxd5 {[%clk 0:09:14.6]} 16. Bxd5+ {[%clk 0:08:43.1]} 16... Kh8
{[%clk 0:09:14.2]} 17. Rae1 {[%clk 0:08:44.3]} 17... Nd4 {[%clk 0:08:56.6]} 18.
Qc3 {[%clk 0:08:00.6]} 18... c6 {[%clk 0:08:33.8]} 19. Bg2 {[%clk 0:07:59.8]}
19... g5 {[%clk 0:07:27.7]} 20. Re4 {[%clk 0:07:50.1]} 20... Rad8 {[%clk
0:06:57.3]} 21. Qe3 {[%clk 0:07:42.3]} 21... Nf5 {[%clk 0:05:49.8]} 22. Qxa7
{[%clk 0:07:27.4]} 22... Nd6 {[%clk 0:05:04.7]} 23. Re2 {[%clk 0:07:22.2]} 23...
Ra8 {[%clk 0:05:01.6]} 24. Qc5 {[%clk 0:07:14]} 24... Rxa2 {[%clk 0:05:01.3]}
25. Rd1 {[%clk 0:06:37.9]} 25... Nf5 {[%clk 0:04:53.5]} 26. Qxe5 {[%clk
0:04:12.9]} 26... Qxe5 {[%clk 0:04:49.6]} 27. Rxe5 {[%clk 0:04:14.8]} 27... Rxb2
{[%clk 0:04:48.7]} 28. Be4 {[%clk 0:04:14]} 28... Ng7 {[%clk 0:04:33.3]} 29. Rd7
{[%clk 0:03:51.2]} 29... Rbxf2 {[%clk 0:03:46.3]} 30. Ree7 {[%clk 0:03:48.7]}
30... Rf1+ {[%clk 0:03:09.4]} 31. Kg2 {[%clk 0:03:49.2]} 31... g4 {[%clk
0:03:10.5]} 32. Rd2 {[%clk 0:03:23.4]} 32... Re1 {[%clk 0:03:08.4]} 33. Rdd7
{[%clk 0:02:51.6]} 33... Re2+ {[%clk 0:02:48.4]} 34. Kg1 {[%clk 0:02:50]} 34...
Ra8 {[%clk 0:01:47.9]} 35. Bg2 {[%clk 0:02:35.2]} 35... Ra1+ {[%clk 0:01:27.6]}
36. Bf1 {[%clk 0:02:35.3]} 36... Rxe7 {[%clk 0:01:28.6]} 37. Rxe7 {[%clk
0:02:37.2]} 37... Nf5 {[%clk 0:01:29.7]} 38. Re4 {[%clk 0:02:01.7]} 38... c5
{[%clk 0:01:19.6]} 39. Re5 {[%clk 0:01:34.6]} 39... Nd4 {[%clk 0:01:12.4]} 40.
Rxc5 {[%clk 0:01:30.6]} 40... Nf3+ {[%clk 0:01:11.6]} 41. Kf2 {[%clk 0:01:31.7]}
41... Ra2+ {[%clk 0:00:53.9]} 42. Ke3 {[%clk 0:01:27.7]} 42... Ra3+ {[%clk
0:00:44.2]} 43. Kf4 {[%clk 0:01:20.6]} 43... Nxh2 {[%clk 0:00:43.1]} 44. Be2
{[%clk 0:01:21.2]} 44... Kg7 {[%clk 0:00:11.8]} 45. Rc7+ {[%clk 0:00:37.2]}
45... Kg6 {[%clk 0:00:11.8]} 46. Rxb7 {[%clk 0:00:36.1]} 46... h5 {[%clk
0:00:03.3]} 47. c5 {[%clk 0:00:25.4]} 47... Rc3 {[%clk 0:00:03.3]} 48. Rb6+
{[%clk 0:00:26.5]} 48... Kf7 {[%clk 0:00:03.7]} 49. c6 {[%clk 0:00:27.4]} 49...
Ke7 {[%clk 0:00:03.6]} 50. Bb5 {[%clk 0:00:23]} 50... Kd6 {[%clk 0:00:04]} 51.
Rb7 {[%clk 0:00:21.6]} 51... Nf3 {[%clk 0:00:03.5]} 52. Rd7+ {[%clk 0:00:16.6]}
52... Kc5 {[%clk 0:00:04.5]} 53. Ba4 {[%clk 0:00:13.4]} 53... Kb6 {[%clk
0:00:03.9]} 54. Rb7+ {[%clk 0:00:13.9]} 54... Kc5 {[%clk 0:00:03.5]} 55. Rb5+
{[%clk 0:00:10.8]} 55... Kd6 {[%clk 0:00:04]} 56. Rb4 {[%clk 0:00:09]} 56... Ne1
{[%clk 0:00:02.1]} 57. Rd4+ {[%clk 0:00:09.1]} 1-0

[Event "GrandPrix_30.05"]
[Site "Chess.com"]
[Date "2020.05.30"]
[Round "8"]
[White "BairaKovanova"]
[Black "Mesropov_Konstantin"]
[Result "1/2-1/2"]
[WhiteElo "2160"]
[BlackElo "2223"]
[TimeControl "600+2"]
[EndTime "12:00:53 PDT"]
[Termination "Game drawn - insufficient material"]

1. e4 {[%clk 0:09:55.4]} 1... e6 {[%clk 0:10:00.3]} 2. d3 {[%clk 0:09:55.6]}
2... c5 {[%clk 0:09:55.5]} 3. Nf3 {[%clk 0:09:54.6]} 3... Nc6 {[%clk 0:09:56.7]}
4. g3 {[%clk 0:09:55.5]} 4... g6 {[%clk 0:09:57.6]} 5. Bg2 {[%clk 0:09:56.1]}
5... Bg7 {[%clk 0:09:58.5]} 6. O-O {[%clk 0:09:57.1]} 6... Nge7 {[%clk
0:09:59.6]} 7. c3 {[%clk 0:09:47.4]} 7... O-O {[%clk 0:09:51.9]} 8. Be3 {[%clk
0:09:42.4]} 8... b6 {[%clk 0:09:17.3]} 9. Qc1 {[%clk 0:08:44.5]} 9... d5 {[%clk
0:08:28.9]} 10. exd5 {[%clk 0:08:28.1]} 10... Nxd5 {[%clk 0:08:19.2]} 11. Bh6
{[%clk 0:08:28.5]} 11... Bb7 {[%clk 0:08:14.2]} 12. Rd1 {[%clk 0:08:10.9]} 12...
Bxh6 {[%clk 0:07:27.7]} 13. Qxh6 {[%clk 0:08:08.8]} 13... Qf6 {[%clk 0:07:29.2]}
14. Nbd2 {[%clk 0:07:58.5]} 14... Qg7 {[%clk 0:07:24.5]} 15. Qh4 {[%clk
0:07:56.6]} 15... Rad8 {[%clk 0:06:53.1]} 16. Ne4 {[%clk 0:07:48.6]} 16... Nce7
{[%clk 0:06:34.7]} 17. Re1 {[%clk 0:04:45.5]} 17... Nf5 {[%clk 0:06:27.4]} 18.
Qh3 {[%clk 0:04:21.1]} 18... h6 {[%clk 0:06:03.6]} 19. Nh4 {[%clk 0:03:58.8]}
19... Bc8 {[%clk 0:05:18.7]} 20. Qg4 {[%clk 0:02:40.5]} 20... g5 {[%clk
0:02:50.4]} 21. Nf3 {[%clk 0:01:48.4]} 21... e5 {[%clk 0:02:51.6]} 22. Qh5
{[%clk 0:01:33.8]} 22... Nfe7 {[%clk 0:02:04]} 23. h4 {[%clk 0:00:26]} 23... f5
{[%clk 0:01:18.9]} 24. hxg5 {[%clk 0:00:26]} 24... fxe4 {[%clk 0:00:59.9]} 25.
dxe4 {[%clk 0:00:25.8]} 25... Nc7 {[%clk 0:00:52.4]} 26. gxh6 {[%clk 0:00:26.3]}
26... Qg6 {[%clk 0:00:43.3]} 27. Qxe5 {[%clk 0:00:26.9]} 27... Ne6 {[%clk
0:00:42.6]} 28. Nh4 {[%clk 0:00:17.1]} 28... Qxh6 {[%clk 0:00:38.1]} 29. Nf5
{[%clk 0:00:15.4]} 29... Qg5 {[%clk 0:00:14.1]} 30. f4 {[%clk 0:00:09.3]} 30...
Ng6 {[%clk 0:00:11.1]} 31. Qxe6+ {[%clk 0:00:09]} 31... Bxe6 {[%clk 0:00:12]}
32. fxg5 {[%clk 0:00:10.6]} 32... Bxf5 {[%clk 0:00:12.5]} 33. exf5 {[%clk
0:00:11.6]} 33... Rxf5 {[%clk 0:00:14]} 34. Rad1 {[%clk 0:00:08.8]} 34... Rxd1
{[%clk 0:00:13.2]} 35. Rxd1 {[%clk 0:00:09.9]} 35... Rxg5 {[%clk 0:00:14.7]} 36.
Rd3 {[%clk 0:00:08.6]} 36... Ne5 {[%clk 0:00:15]} 37. Rd5 {[%clk 0:00:08]} 37...
Kg7 {[%clk 0:00:14.9]} 38. Kf2 {[%clk 0:00:06.7]} 38... Kf6 {[%clk 0:00:10.7]}
39. Be4 {[%clk 0:00:06.7]} 39... Nc4 {[%clk 0:00:06.2]} 40. Rxg5 {[%clk
0:00:06.1]} 40... Kxg5 {[%clk 0:00:08.1]} 41. b3 {[%clk 0:00:07]} 41... Nd6
{[%clk 0:00:08.8]} 42. Bd3 {[%clk 0:00:06.6]} 42... Kf6 {[%clk 0:00:08.1]} 43.
Kf3 {[%clk 0:00:07.5]} 43... Kg5 {[%clk 0:00:07]} 44. c4 {[%clk 0:00:07.7]}
44... a5 {[%clk 0:00:07.3]} 45. a4 {[%clk 0:00:07.6]} 45... Kf6 {[%clk
0:00:05.3]} 46. Kf4 {[%clk 0:00:08.5]} 46... Nf7 {[%clk 0:00:04.8]} 47. g4
{[%clk 0:00:08.6]} 47... Ng5 {[%clk 0:00:06.2]} 48. Bf1 {[%clk 0:00:07.5]} 48...
Ne6+ {[%clk 0:00:06.2]} 49. Ke4 {[%clk 0:00:08.2]} 49... Nd4 {[%clk 0:00:07.7]}
50. Kd5 {[%clk 0:00:06.5]} 50... Nxb3 {[%clk 0:00:08]} 51. Kc6 {[%clk
0:00:07.3]} 51... Kg5 {[%clk 0:00:07.9]} 52. Be2 {[%clk 0:00:06.5]} 52... Nd4+
{[%clk 0:00:08.5]} 53. Kxb6 {[%clk 0:00:06]} 53... Nxe2 {[%clk 0:00:09.9]} 54.
Kxc5 {[%clk 0:00:04.4]} 54... Nc3 {[%clk 0:00:10.7]} 55. Kb6 {[%clk 0:00:05.3]}
55... Nxa4+ {[%clk 0:00:10.4]} 56. Kxa5 {[%clk 0:00:06.4]} 56... Nc5 {[%clk
0:00:11.3]} 57. Kb5 {[%clk 0:00:07.4]} 57... Nd3 {[%clk 0:00:12]} 58. c5 {[%clk
0:00:08.6]} 58... Nxc5 {[%clk 0:00:12.9]} 59. Kxc5 {[%clk 0:00:09.9]} 59... Kxg4
{[%clk 0:00:13.7]} 1/2-1/2

[Event "GrandPrix_30.05"]
[Site "Chess.com"]
[Date "2020.05.30"]
[Round "8"]
[White "MiroVlasenko"]
[Black "Kostya_Nikologorskiy"]
[Result "1-0"]
[WhiteElo "2307"]
[BlackElo "2177"]
[TimeControl "600+2"]
[EndTime "12:01:04 PDT"]
[Termination "MiroVlasenko won by resignation"]

1. d4 {[%clk 0:10:01.9]} 1... Nf6 {[%clk 0:09:59.3]} 2. Bg5 {[%clk 0:10:02]}
2... c5 {[%clk 0:09:59.3]} 3. Bxf6 {[%clk 0:10:02.4]} 3... exf6 {[%clk
0:09:58.7]} 4. Nc3 {[%clk 0:09:31.6]} 4... Qb6 {[%clk 0:09:02.6]} 5. Nd5 {[%clk
0:09:17.9]} 5... Qa5+ {[%clk 0:09:01.4]} 6. c3 {[%clk 0:09:15.5]} 6... cxd4
{[%clk 0:08:55.1]} 7. Qxd4 {[%clk 0:09:14.9]} 7... Nc6 {[%clk 0:08:56.2]} 8. Qd2
{[%clk 0:08:24.5]} 8... d6 {[%clk 0:08:46.4]} 9. e3 {[%clk 0:08:08.3]} 9... Be6
{[%clk 0:08:44.5]} 10. Nf4 {[%clk 0:08:09.1]} 10... O-O-O {[%clk 0:08:34.5]} 11.
Nf3 {[%clk 0:08:04.5]} 11... d5 {[%clk 0:08:23.5]} 12. Bd3 {[%clk 0:07:38.6]}
12... g5 {[%clk 0:08:22.8]} 13. Ne2 {[%clk 0:07:38.1]} 13... Ne5 {[%clk
0:08:18.9]} 14. Nfd4 {[%clk 0:07:33.9]} 14... Bd6 {[%clk 0:08:10.6]} 15. Nb3
{[%clk 0:07:20.7]} 15... Qc7 {[%clk 0:08:03.5]} 16. Ned4 {[%clk 0:07:21.2]}
16... a6 {[%clk 0:07:54]} 17. h3 {[%clk 0:07:04.3]} 17... h5 {[%clk 0:07:04.2]}
18. O-O-O {[%clk 0:06:51.5]} 18... Kb8 {[%clk 0:06:19.7]} 19. Kb1 {[%clk
0:06:51]} 19... Rhe8 {[%clk 0:05:45.2]} 20. h4 {[%clk 0:06:25.4]} 20... g4
{[%clk 0:05:08.6]} 21. g3 {[%clk 0:06:23.6]} 21... Bc5 {[%clk 0:04:16.7]} 22.
Nxc5 {[%clk 0:06:10.7]} 22... Qxc5 {[%clk 0:04:15.5]} 23. Qc2 {[%clk 0:05:49.3]}
23... Rc8 {[%clk 0:03:58.1]} 24. Qb3 {[%clk 0:05:42.4]} 24... Ka7 {[%clk
0:03:54.9]} 25. Be2 {[%clk 0:05:22]} 25... Red8 {[%clk 0:03:39.4]} 26. Qa4
{[%clk 0:04:34.4]} 26... Bd7 {[%clk 0:03:28.2]} 27. Qb4 {[%clk 0:04:27.5]} 27...
b6 {[%clk 0:02:55]} 28. a3 {[%clk 0:03:56.5]} 28... a5 {[%clk 0:02:29.9]} 29.
Qb3 {[%clk 0:03:50.9]} 29... Kb7 {[%clk 0:02:25.4]} 30. Ka1 {[%clk 0:03:28.5]}
30... Be6 {[%clk 0:02:05.9]} 31. Qb5 {[%clk 0:03:21.2]} 31... Ra8 {[%clk
0:02:02]} 32. Nb3 {[%clk 0:03:07.3]} 32... Qxb5 {[%clk 0:01:49.8]} 33. Bxb5
{[%clk 0:03:07.4]} 33... Rd6 {[%clk 0:01:40.5]} 34. Nd4 {[%clk 0:03:04.9]} 34...
Bd7 {[%clk 0:01:39.8]} 35. Bd3 {[%clk 0:02:51.8]} 35... Ba4 {[%clk 0:01:30.5]}
36. Rd2 {[%clk 0:02:44.1]} 36... Rad8 {[%clk 0:01:26.8]} 37. b3 {[%clk
0:02:27.8]} 37... Bd7 {[%clk 0:01:21.1]} 38. a4 {[%clk 0:02:27.2]} 38... Rc8
{[%clk 0:01:19.1]} 39. Kb2 {[%clk 0:02:27.5]} 39... Be6 {[%clk 0:01:05.9]} 40.
Rhd1 {[%clk 0:02:19.2]} 40... Rd7 {[%clk 0:01:01.9]} 41. Ne2 {[%clk 0:02:04.9]}
41... Nf3 {[%clk 0:00:56.3]} 42. Rc2 {[%clk 0:02:03.3]} 42... Rdc7 {[%clk
0:00:56]} 43. Nf4 {[%clk 0:01:57.5]} 43... Rh8 {[%clk 0:00:54.1]} 44. Rcc1
{[%clk 0:01:47.3]} 44... Rc5 {[%clk 0:00:51.4]} 45. Bf1 {[%clk 0:01:31.7]} 45...
Ne5 {[%clk 0:00:48.9]} 46. Bg2 {[%clk 0:01:30.7]} 46... Kc8 {[%clk 0:00:36.7]}
47. Bxd5 {[%clk 0:01:07.1]} 47... Bxd5 {[%clk 0:00:33.5]} 48. Nxd5 {[%clk
0:01:07.5]} 48... Kb7 {[%clk 0:00:21.2]} 49. Nxf6 {[%clk 0:00:56.5]} 49... Rc6
{[%clk 0:00:22.4]} 50. Nd5 {[%clk 0:00:56.4]} 50... Rd8 {[%clk 0:00:21.9]} 51.
c4 {[%clk 0:00:56.9]} 51... Rcd6 {[%clk 0:00:22.3]} 52. Kc3 {[%clk 0:00:56.5]}
52... Nc6 {[%clk 0:00:23.5]} 53. Rd2 {[%clk 0:00:53.6]} 53... f5 {[%clk
0:00:24.5]} 54. Rcd1 {[%clk 0:00:53.6]} 54... Re6 {[%clk 0:00:21]} 55. Nf4
{[%clk 0:00:52.4]} 55... Rxd2 {[%clk 0:00:21.9]} 56. Rxd2 {[%clk 0:00:53.2]}
56... Rh6 {[%clk 0:00:21.8]} 57. Rd5 {[%clk 0:00:51.1]} 57... Nb4 {[%clk
0:00:21.6]} 58. Rxf5 {[%clk 0:00:49.9]} 58... Rd6 {[%clk 0:00:23.3]} 59. Nd5
{[%clk 0:00:48.4]} 59... Na2+ {[%clk 0:00:23.7]} 60. Kb2 {[%clk 0:00:46.3]}
60... Nb4 {[%clk 0:00:25.1]} 61. Kc3 {[%clk 0:00:38.8]} 61... Na6 {[%clk
0:00:23.7]} 62. Rxh5 {[%clk 0:00:37.3]} 62... Nc5 {[%clk 0:00:24.6]} 63. Rh7+
{[%clk 0:00:36]} 63... Kc8 {[%clk 0:00:25.2]} 64. Re7 {[%clk 0:00:36.5]} 64...
Kd8 {[%clk 0:00:25.2]} 65. Re5 {[%clk 0:00:34.9]} 65... Rd7 {[%clk 0:00:22.3]}
66. Nxb6 {[%clk 0:00:31.5]} 66... Rd3+ {[%clk 0:00:20.6]} 67. Kc2 {[%clk
0:00:32.4]} 67... Rxb3 {[%clk 0:00:22.1]} 68. Rxc5 {[%clk 0:00:32]} 68... Rxb6
{[%clk 0:00:22.9]} 69. Rxa5 {[%clk 0:00:30.6]} 1-0